[Event "Early-Titled-Tuesday-Blitz-October-03-2023"]
[Site "Chess.com"]
[Date "2023.10.03"]
[Round "5"]
[White "Larina_Maria"]
[Black "zverr1"]
[Result "0-1"]
[WhiteElo "2231"]
[BlackElo "2516"]
[TimeControl "180+1"]
[EndTime "8:56:49 PDT"]
[Termination "zverr1 won by resignation"]

1. e4 {[%clk 0:03:00.9]} 1... c5 {[%clk 0:02:56.6]} 2. Nc3 {[%clk 0:03:00.7]}
2... g6 {[%clk 0:02:56.4]} 3. g3 {[%clk 0:03:00.6]} 3... Bg7 {[%clk 0:02:56.6]}
4. Bg2 {[%clk 0:03:01.3]} 4... Nc6 {[%clk 0:02:57.4]} 5. d3 {[%clk 0:03:02]}
5... e6 {[%clk 0:02:56.9]} 6. Be3 {[%clk 0:03:02.2]} 6... d6 {[%clk 0:02:57.6]}
7. Qd2 {[%clk 0:03:02.1]} 7... Rb8 {[%clk 0:02:58.3]} 8. Nge2 {[%clk 0:03:01.5]}
8... b5 {[%clk 0:02:57.1]} 9. O-O {[%clk 0:03:01]} 9... Nge7 {[%clk 0:02:56.9]}
10. Bh6 {[%clk 0:02:59.7]} 10... O-O {[%clk 0:02:55.2]} 11. Bxg7 {[%clk
0:02:54.9]} 11... Kxg7 {[%clk 0:02:56.1]} 12. f4 {[%clk 0:02:54.3]} 12... b4
{[%clk 0:02:53.8]} 13. Nd1 {[%clk 0:02:54.9]} 13... Bb7 {[%clk 0:02:37.6]} 14.
Ne3 {[%clk 0:02:54.1]} 14... f5 {[%clk 0:02:34.2]} 15. exf5 {[%clk 0:02:39.4]}
15... Nxf5 {[%clk 0:02:23]} 16. Nxf5+ {[%clk 0:02:39.3]} 16... gxf5 {[%clk
0:02:21.7]} 17. d4 {[%clk 0:02:37.9]} 17... cxd4 {[%clk 0:02:13.4]} 18. Nxd4
{[%clk 0:02:37.9]} 18... Qb6 {[%clk 0:02:12.3]} 19. Bxc6 {[%clk 0:02:09.6]}
19... Bxc6 {[%clk 0:02:10.6]} 20. Qe3 {[%clk 0:01:54.4]} 20... Bd5 {[%clk
0:01:45.4]} 21. Rf2 {[%clk 0:01:40.4]} 21... Rbe8 {[%clk 0:01:32.9]} 22. a3
{[%clk 0:01:14.8]} 22... bxa3 {[%clk 0:00:42.5]} 23. Rxa3 {[%clk 0:01:15.7]}
23... Kg8 {[%clk 0:00:42.2]} 24. b3 {[%clk 0:00:56.3]} 24... Be4 {[%clk
0:00:39.3]} 25. c4 {[%clk 0:00:49.5]} 25... e5 {[%clk 0:00:19.5]} 26. fxe5
{[%clk 0:00:49]} 26... dxe5 {[%clk 0:00:19.7]} 27. Qg5+ {[%clk 0:00:49.3]} 27...
Kh8 {[%clk 0:00:20.3]} 28. Nb5 {[%clk 0:00:36.1]} 28... a6 {[%clk 0:00:20.4]}
29. Nc3 {[%clk 0:00:28.4]} 29... Qd4 {[%clk 0:00:07]} 30. Qd2 {[%clk 0:00:25.9]}
30... Qc5 {[%clk 0:00:03.9]} 31. Ra1 {[%clk 0:00:20.6]} 31... Rd8 {[%clk
0:00:04.4]} 32. Qe2 {[%clk 0:00:15.5]} 32... Qd4 {[%clk 0:00:04.3]} 33. Rc1
{[%clk 0:00:15.4]} 33... Bd3 {[%clk 0:00:03.1]} 34. Qh5 {[%clk 0:00:11.3]} 34...
e4 {[%clk 0:00:03]} 35. Qh6 {[%clk 0:00:06.4]} 35... e3 {[%clk 0:00:02.2]} 36.
Re2 {[%clk 0:00:05.1]} 36... Bxe2 {[%clk 0:00:02.4]} 37. Nxe2 {[%clk 0:00:06]}
37... Qd2 {[%clk 0:00:01.9]} 38. Qh5 {[%clk 0:00:04.9]} 38... Qd3 {[%clk
0:00:01.8]} 39. Qf3 {[%clk 0:00:04.7]} 39... Qe4 {[%clk 0:00:02.4]} 40. Kg2
{[%clk 0:00:03.9]} 40... Qxf3+ {[%clk 0:00:02.5]} 41. Kxf3 {[%clk 0:00:04.8]}
41... Rd2 {[%clk 0:00:03.1]} 42. Kxe3 {[%clk 0:00:04.8]} 42... Rb2 {[%clk
0:00:03.8]} 43. Rc3 {[%clk 0:00:04.6]} 43... Re8+ {[%clk 0:00:04.1]} 44. Kf4
{[%clk 0:00:04.6]} 44... Rexe2 {[%clk 0:00:04.8]} 45. Kxf5 {[%clk 0:00:05.5]}
45... Rxh2 {[%clk 0:00:03.6]} 46. c5 {[%clk 0:00:05.9]} 46... Rh6 {[%clk
0:00:03.7]} 47. c6 {[%clk 0:00:05.7]} 47... Rf2+ {[%clk 0:00:03.2]} 48. Kg4
{[%clk 0:00:05.7]} 48... Rf8 {[%clk 0:00:03.3]} 49. c7 {[%clk 0:00:06.1]} 49...
Rc8 {[%clk 0:00:03.6]} 50. Rc5 {[%clk 0:00:04.1]} 50... Rg6+ {[%clk 0:00:03.5]}
51. Kf5 {[%clk 0:00:04.4]} 51... Rg7 {[%clk 0:00:04.4]} 52. g4 {[%clk
0:00:04.5]} 52... Rgxc7 {[%clk 0:00:04.9]} 53. Rd5 {[%clk 0:00:04.5]} 53... Rc5
{[%clk 0:00:05.3]} 54. Ke6 {[%clk 0:00:04.7]} 54... Rxd5 {[%clk 0:00:05.7]} 55.
Kxd5 {[%clk 0:00:05.6]} 55... Rg8 {[%clk 0:00:06.3]} 56. g5 {[%clk 0:00:06.5]}
56... Rxg5+ {[%clk 0:00:06.4]} 57. Ke6 {[%clk 0:00:07.4]} 57... Rb5 {[%clk
0:00:06.8]} 58. Ke7 {[%clk 0:00:08.3]} 58... Rxb3 {[%clk 0:00:07.7]} 59. Kf6
{[%clk 0:00:09.2]} 59... Rb1 {[%clk 0:00:08.2]} 0-1

[Event "Early-Titled-Tuesday-Blitz-October-03-2023"]
[Site "Chess.com"]
[Date "2023.10.03"]
[Round "5"]
[White "MMAHDI2013"]
[Black "ArmanGhevondyanchess"]
[Result "1-0"]
[WhiteElo "2415"]
[BlackElo "2562"]
[TimeControl "180+1"]
[EndTime "8:56:52 PDT"]
[Termination "MMAHDI2013 won by resignation"]

1. c4 {[%clk 0:02:59.5]} 1... Nf6 {[%clk 0:03:00]} 2. Nf3 {[%clk 0:02:59]} 2...
g6 {[%clk 0:03:00]} 3. b3 {[%clk 0:02:59]} 3... Bg7 {[%clk 0:03:00]} 4. Bb2
{[%clk 0:02:59.9]} 4... O-O {[%clk 0:03:00.3]} 5. g3 {[%clk 0:02:59.9]} 5... d5
{[%clk 0:02:59.1]} 6. cxd5 {[%clk 0:03:00.4]} 6... Qxd5 {[%clk 0:02:59.9]} 7.
Nc3 {[%clk 0:02:57.5]} 7... Qa5 {[%clk 0:02:59.5]} 8. Bg2 {[%clk 0:02:56.8]}
8... Nc6 {[%clk 0:02:59.4]} 9. O-O {[%clk 0:02:57]} 9... Qh5 {[%clk 0:02:59.4]}
10. Rc1 {[%clk 0:02:54.4]} 10... Rd8 {[%clk 0:02:59.3]} 11. Na4 {[%clk
0:02:48.5]} 11... e5 {[%clk 0:02:27.7]} 12. Rc5 {[%clk 0:02:22.7]} 12... Ne4
{[%clk 0:02:11.2]} 13. Rc4 {[%clk 0:02:06.5]} 13... Bf5 {[%clk 0:01:57.2]} 14.
h3 {[%clk 0:01:53.7]} 14... Qh6 {[%clk 0:01:25]} 15. d3 {[%clk 0:01:17]} 15...
Na5 {[%clk 0:01:08.4]} 16. Bc1 {[%clk 0:01:04.2]} 16... g5 {[%clk 0:01:06.2]}
17. Rxe4 {[%clk 0:01:03.1]} 17... Bxe4 {[%clk 0:01:05.1]} 18. Bxg5 {[%clk
0:01:03.4]} 18... Qh5 {[%clk 0:00:35.3]} 19. Bxd8 {[%clk 0:00:59.2]} 19... Rxd8
{[%clk 0:00:36.2]} 20. Qe1 {[%clk 0:00:56.2]} 20... Bxf3 {[%clk 0:00:23.7]} 21.
Bxf3 {[%clk 0:00:56.1]} 21... Qxh3 {[%clk 0:00:24.1]} 22. Qxa5 {[%clk
0:00:55.9]} 22... Rd6 {[%clk 0:00:24.6]} 23. Bg2 {[%clk 0:00:48]} 23... Qh5
{[%clk 0:00:24.2]} 24. Qb4 {[%clk 0:00:46.4]} 24... Rh6 {[%clk 0:00:19.8]} 25.
Rc1 {[%clk 0:00:40.8]} 25... c6 {[%clk 0:00:18.6]} 26. Qe4 {[%clk 0:00:38]}
26... Qh2+ {[%clk 0:00:17.8]} 27. Kf1 {[%clk 0:00:38]} 27... Rf6 {[%clk
0:00:17.6]} 28. Qe3 {[%clk 0:00:32.3]} 28... Bh6 {[%clk 0:00:17.3]} 29. Qxe5
{[%clk 0:00:31.3]} 29... Re6 {[%clk 0:00:15.3]} 30. Qb8+ {[%clk 0:00:30.7]}
30... Kg7 {[%clk 0:00:16]} 31. Rc4 {[%clk 0:00:29.7]} 31... Qh5 {[%clk 0:00:12]}
32. Bf3 {[%clk 0:00:26.6]} 32... Qh3+ {[%clk 0:00:11.3]} 33. Ke1 {[%clk
0:00:24.2]} 33... Qh2 {[%clk 0:00:09]} 34. Rg4+ {[%clk 0:00:23]} 34... Rg6
{[%clk 0:00:09.6]} 35. Rxg6+ {[%clk 0:00:22.8]} 35... hxg6 {[%clk 0:00:09.9]}
36. Qe5+ {[%clk 0:00:22.2]} 36... Kh7 {[%clk 0:00:09.5]} 37. e3 {[%clk 0:00:16]}
37... Qg1+ {[%clk 0:00:08.9]} 38. Ke2 {[%clk 0:00:15.9]} 38... Qb1 {[%clk
0:00:09.6]} 39. Be4 {[%clk 0:00:15.8]} 39... Qc2+ {[%clk 0:00:08.1]} 40. Kf3
{[%clk 0:00:15.4]} 40... Qd1+ {[%clk 0:00:08.1]} 41. Kg2 {[%clk 0:00:15.8]}
41... Qd2 {[%clk 0:00:07.7]} 42. Qe7 {[%clk 0:00:15.2]} 42... Kg8 {[%clk
0:00:06.8]} 43. Qe8+ {[%clk 0:00:15.3]} 43... Kg7 {[%clk 0:00:07.1]} 44. Qe5+
{[%clk 0:00:15.8]} 44... Kg8 {[%clk 0:00:07]} 45. Qd4 {[%clk 0:00:16.1]} 45...
b6 {[%clk 0:00:05.6]} 46. Bxc6 {[%clk 0:00:16.1]} 46... Bg7 {[%clk 0:00:06]} 47.
Qe4 {[%clk 0:00:16.2]} 47... Qc2 {[%clk 0:00:05.1]} 48. Bd5 {[%clk 0:00:16.6]}
48... Qc8 {[%clk 0:00:04.6]} 49. Qf4 {[%clk 0:00:16]} 49... Qc7 {[%clk
0:00:04.1]} 50. Qxf7+ {[%clk 0:00:16.1]} 50... Qxf7 {[%clk 0:00:05]} 51. Bxf7+
{[%clk 0:00:17]} 51... Kxf7 {[%clk 0:00:05.8]} 52. d4 {[%clk 0:00:16.8]} 52...
Ke6 {[%clk 0:00:06.2]} 53. Nc3 {[%clk 0:00:17.3]} 53... Bf8 {[%clk 0:00:06.6]}
54. Kf3 {[%clk 0:00:17.7]} 54... Bb4 {[%clk 0:00:06.7]} 55. Ne2 {[%clk
0:00:18.4]} 55... a5 {[%clk 0:00:06.8]} 56. Ke4 {[%clk 0:00:18.8]} 56... b5
{[%clk 0:00:07.2]} 57. f4 {[%clk 0:00:18.9]} 57... Kf7 {[%clk 0:00:07.9]} 58. g4
{[%clk 0:00:19.3]} 58... Ke6 {[%clk 0:00:08.3]} 59. f5+ {[%clk 0:00:20.2]} 59...
gxf5+ {[%clk 0:00:09.2]} 60. gxf5+ {[%clk 0:00:21.1]} 60... Kf6 {[%clk
0:00:10.1]} 61. d5 {[%clk 0:00:21.6]} 61... Bc5 {[%clk 0:00:09.3]} 62. Nd4
{[%clk 0:00:21.9]} 62... Bd6 {[%clk 0:00:09]} 63. Nxb5 {[%clk 0:00:22.2]} 63...
Bc5 {[%clk 0:00:09.9]} 64. d6 {[%clk 0:00:23]} 64... Kf7 {[%clk 0:00:09.7]} 65.
Kd5 {[%clk 0:00:23.4]} 65... Ke8 {[%clk 0:00:10.6]} 66. Kxc5 {[%clk 0:00:23.7]}
1-0

[Event "Early-Titled-Tuesday-Blitz-October-03-2023"]
[Site "Chess.com"]
[Date "2023.10.03"]
[Round "5"]
[White "Leonid_Starozhilov"]
[Black "Journey_to_GrandMaster_YT"]
[Result "1/2-1/2"]
[WhiteElo "2747"]
[BlackElo "2571"]
[TimeControl "180+1"]
[EndTime "8:56:53 PDT"]
[Termination "Game drawn by repetition"]

1. Nf3 {[%clk 0:02:59.3]} 1... d6 {[%clk 0:03:00.9]} 2. c4 {[%clk 0:02:57]} 2...
Nf6 {[%clk 0:03:00.5]} 3. Nc3 {[%clk 0:02:56.4]} 3... e5 {[%clk 0:02:59]} 4. g3
{[%clk 0:02:56.7]} 4... Nbd7 {[%clk 0:02:58.7]} 5. Bg2 {[%clk 0:02:57]} 5... c6
{[%clk 0:02:59.2]} 6. O-O {[%clk 0:02:57.3]} 6... Be7 {[%clk 0:02:59.6]} 7. d3
{[%clk 0:02:54.5]} 7... O-O {[%clk 0:02:59.1]} 8. e4 {[%clk 0:02:42.7]} 8... a5
{[%clk 0:02:57.9]} 9. a3 {[%clk 0:02:42.6]} 9... Nc5 {[%clk 0:02:57.7]} 10. h3
{[%clk 0:02:42.5]} 10... Ne8 {[%clk 0:02:50.2]} 11. d4 {[%clk 0:02:32.8]} 11...
exd4 {[%clk 0:02:41.6]} 12. Nxd4 {[%clk 0:02:33.7]} 12... g6 {[%clk 0:02:28.2]}
13. Bh6 {[%clk 0:02:26.2]} 13... Ng7 {[%clk 0:02:28.1]} 14. b4 {[%clk
0:02:24.7]} 14... axb4 {[%clk 0:02:25.3]} 15. axb4 {[%clk 0:02:25.6]} 15... Rxa1
{[%clk 0:02:25.8]} 16. Qxa1 {[%clk 0:02:25.4]} 16... Nd3 {[%clk 0:02:25.9]} 17.
Qb1 {[%clk 0:01:01.3]} 17... Ne5 {[%clk 0:02:22.5]} 18. Qb3 {[%clk 0:01:01]}
18... Be6 {[%clk 0:02:03.9]} 19. Nxe6 {[%clk 0:00:56.7]} 19... fxe6 {[%clk
0:02:04.8]} 20. f4 {[%clk 0:00:51]} 20... Nf7 {[%clk 0:01:57]} 21. Bxg7 {[%clk
0:00:51.3]} 21... Kxg7 {[%clk 0:01:57]} 22. Kh2 {[%clk 0:00:44.8]} 22... Qb6
{[%clk 0:01:52.5]} 23. c5 {[%clk 0:00:37]} 23... dxc5 {[%clk 0:01:40.9]} 24.
Qxe6 {[%clk 0:00:36.6]} 24... cxb4 {[%clk 0:01:36.6]} 25. Nd5 {[%clk 0:00:32.2]}
25... Qd8 {[%clk 0:01:20.1]} 26. Qxe7 {[%clk 0:00:23.8]} 26... cxd5 {[%clk
0:01:18.3]} 27. Qxb7 {[%clk 0:00:24]} 27... dxe4 {[%clk 0:01:14.4]} 28. Qxb4
{[%clk 0:00:22.3]} 28... Re8 {[%clk 0:00:56.5]} 29. Bxe4 {[%clk 0:00:21.8]}
29... Qf6 {[%clk 0:00:53.4]} 30. Bg2 {[%clk 0:00:13.1]} 30... Re2 {[%clk
0:00:52.4]} 31. Re1 {[%clk 0:00:10.1]} 31... Rb2 {[%clk 0:00:46.5]} 32. Qe7
{[%clk 0:00:09.8]} 32... Qc6 {[%clk 0:00:41.2]} 33. Re2 {[%clk 0:00:07.9]} 33...
Qc3 {[%clk 0:00:35.6]} 34. Rxb2 {[%clk 0:00:07.1]} 34... Qxb2 {[%clk 0:00:36.5]}
35. g4 {[%clk 0:00:05]} 35... Qd4 {[%clk 0:00:35.4]} 36. Kg3 {[%clk 0:00:04.3]}
36... Qc3+ {[%clk 0:00:34.1]} 37. Bf3 {[%clk 0:00:04.4]} 37... h6 {[%clk
0:00:32.9]} 38. Qe2 {[%clk 0:00:04.6]} 38... Qa1 {[%clk 0:00:31.6]} 39. Qf2
{[%clk 0:00:04.4]} 39... Qc3 {[%clk 0:00:30.5]} 40. h4 {[%clk 0:00:04.5]} 40...
Qa1 {[%clk 0:00:23.8]} 41. Kg2 {[%clk 0:00:04.1]} 41... Qf6 {[%clk 0:00:22.5]}
42. Bd5 {[%clk 0:00:03.6]} 42... Qd6 {[%clk 0:00:17.9]} 43. Bxf7 {[%clk
0:00:03.3]} 43... Kxf7 {[%clk 0:00:17.9]} 44. Qf3 {[%clk 0:00:03.5]} 44... Qd2+
{[%clk 0:00:17.8]} 45. Kg3 {[%clk 0:00:04.1]} 45... Qe1+ {[%clk 0:00:18.2]} 46.
Kh3 {[%clk 0:00:04.7]} 46... Qg1 {[%clk 0:00:15.3]} 47. f5 {[%clk 0:00:04.3]}
47... g5 {[%clk 0:00:14]} 48. hxg5 {[%clk 0:00:04.5]} 48... hxg5 {[%clk
0:00:14.9]} 49. Qd5+ {[%clk 0:00:05.1]} 49... Kf8 {[%clk 0:00:13.3]} 50. Qd6+
{[%clk 0:00:04.8]} 50... Ke8 {[%clk 0:00:13.4]} 51. Qg6+ {[%clk 0:00:05.2]}
51... Kd7 {[%clk 0:00:13.3]} 52. Qxg5 {[%clk 0:00:04.5]} 52... Qh1+ {[%clk
0:00:12.6]} 53. Kg3 {[%clk 0:00:04.9]} 53... Qg1+ {[%clk 0:00:12.9]} 54. Kf3
{[%clk 0:00:05.2]} 54... Qf1+ {[%clk 0:00:13]} 55. Ke4 {[%clk 0:00:04.7]} 55...
Qc4+ {[%clk 0:00:13.2]} 56. Kf3 {[%clk 0:00:04]} 56... Qf1+ {[%clk 0:00:12.9]}
57. Ke4 {[%clk 0:00:03.5]} 57... Qc4+ {[%clk 0:00:07.8]} 58. Kf3 {[%clk
0:00:03.9]} 58... Qf1+ {[%clk 0:00:07.9]} 1/2-1/2

[Event "Early-Titled-Tuesday-Blitz-October-03-2023"]
[Site "Chess.com"]
[Date "2023.10.03"]
[Round "5"]
[White "Elsa167"]
[Black "UNSTOPPABLE_LEGEND"]
[Result "1-0"]
[WhiteElo "2899"]
[BlackElo "2448"]
[TimeControl "180+1"]
[EndTime "8:57:04 PDT"]
[Termination "Elsa167 won by resignation"]

1. d4 {[%clk 0:03:00.9]} 1... Nf6 {[%clk 0:02:59.3]} 2. c4 {[%clk 0:03:01]} 2...
e6 {[%clk 0:02:59.5]} 3. g3 {[%clk 0:03:01.5]} 3... d5 {[%clk 0:02:59.4]} 4. Bg2
{[%clk 0:03:01.9]} 4... dxc4 {[%clk 0:03:00]} 5. Nf3 {[%clk 0:02:58.9]} 5... c5
{[%clk 0:02:59.6]} 6. O-O {[%clk 0:02:47.8]} 6... Nc6 {[%clk 0:02:59.3]} 7. Qa4
{[%clk 0:02:33.1]} 7... Bd7 {[%clk 0:02:58.4]} 8. Qxc4 {[%clk 0:02:32.4]} 8...
b5 {[%clk 0:02:59]} 9. Qc2 {[%clk 0:02:32.2]} 9... cxd4 {[%clk 0:02:48.5]} 10.
Rd1 {[%clk 0:02:29.6]} 10... Rc8 {[%clk 0:02:38.5]} 11. Qd2 {[%clk 0:02:24.2]}
11... Bc5 {[%clk 0:02:37]} 12. Qg5 {[%clk 0:02:22.8]} 12... Ne4 {[%clk
0:02:16.3]} 13. Qxg7 {[%clk 0:02:16.9]} 13... Qf6 {[%clk 0:02:16.7]} 14. Qxf6
{[%clk 0:02:16]} 14... Nxf6 {[%clk 0:02:17.6]} 15. Nbd2 {[%clk 0:02:14]} 15...
Bb6 {[%clk 0:02:09.5]} 16. Nb3 {[%clk 0:02:10]} 16... e5 {[%clk 0:02:09.2]} 17.
Bg5 {[%clk 0:01:59.4]} 17... Ne4 {[%clk 0:02:07.2]} 18. Bh4 {[%clk 0:01:46.6]}
18... f5 {[%clk 0:01:54.9]} 19. Nxe5 {[%clk 0:01:04.9]} 19... Nxe5 {[%clk
0:01:48.7]} 20. Bxe4 {[%clk 0:01:04.8]} 20... fxe4 {[%clk 0:01:49.6]} 21. Bf6
{[%clk 0:01:05.5]} 21... Ng6 {[%clk 0:01:31.6]} 22. Bxh8 {[%clk 0:01:05.8]}
22... Nxh8 {[%clk 0:01:32.5]} 23. Nxd4 {[%clk 0:01:06.3]} 23... Ng6 {[%clk
0:01:32]} 24. e3 {[%clk 0:00:59.8]} 24... Ne5 {[%clk 0:01:30.6]} 25. Rac1 {[%clk
0:00:59.4]} 25... Rxc1 {[%clk 0:01:14.2]} 26. Rxc1 {[%clk 0:01:00.3]} 26... Bxd4
{[%clk 0:01:14.6]} 27. exd4 {[%clk 0:01:01.2]} 27... Nf3+ {[%clk 0:01:15.4]} 28.
Kg2 {[%clk 0:01:01.3]} 28... Nxd4 {[%clk 0:01:16.3]} 29. Rc5 {[%clk 0:00:55.1]}
29... Ke7 {[%clk 0:01:08.5]} 30. h3 {[%clk 0:00:48.8]} 30... Kd6 {[%clk
0:01:06.6]} 31. Rg5 {[%clk 0:00:42.9]} 31... Bc6 {[%clk 0:01:04.7]} 32. Kf1
{[%clk 0:00:40.2]} 32... Bd5 {[%clk 0:01:03]} 33. Rg7 {[%clk 0:00:35.9]} 33...
a5 {[%clk 0:00:59.1]} 34. a3 {[%clk 0:00:33.8]} 34... e3 {[%clk 0:00:35]} 35.
fxe3 {[%clk 0:00:30.5]} 35... Nf5 {[%clk 0:00:35.3]} 36. Rxh7 {[%clk 0:00:29.4]}
36... Nxe3+ {[%clk 0:00:35]} 37. Ke1 {[%clk 0:00:20.6]} 37... Nc4 {[%clk
0:00:35]} 38. h4 {[%clk 0:00:20]} 38... Nxb2 {[%clk 0:00:34.6]} 39. h5 {[%clk
0:00:20.5]} 39... b4 {[%clk 0:00:30]} 40. axb4 {[%clk 0:00:21.4]} 40... axb4
{[%clk 0:00:30.6]} 41. h6 {[%clk 0:00:22]} 41... b3 {[%clk 0:00:30.5]} 42. Rh8
{[%clk 0:00:17.4]} 42... Nd3+ {[%clk 0:00:16.1]} 43. Kd2 {[%clk 0:00:17.5]}
43... Ne5 {[%clk 0:00:10.4]} 44. h7 {[%clk 0:00:12.3]} 44... Nf7 {[%clk
0:00:03.2]} 45. Rf8 {[%clk 0:00:08.9]} 45... b2 {[%clk 0:00:02.9]} 46. Kc2
{[%clk 0:00:09.3]} 46... Be4+ {[%clk 0:00:02.9]} 47. Kxb2 {[%clk 0:00:09.8]}
47... Bxh7 {[%clk 0:00:03.1]} 48. Rxf7 {[%clk 0:00:10]} 48... Be4 {[%clk
0:00:03.7]} 49. Rf4 {[%clk 0:00:10.1]} 49... Ke5 {[%clk 0:00:03.9]} 50. Kc3
{[%clk 0:00:10.8]} 50... Bf5 {[%clk 0:00:04]} 51. Kd2 {[%clk 0:00:11.3]} 51...
Be4 {[%clk 0:00:03.8]} 52. Ke3 {[%clk 0:00:11.7]} 52... Bd5 {[%clk 0:00:04.3]}
53. g4 {[%clk 0:00:12.2]} 53... Be6 {[%clk 0:00:04.5]} 54. g5 {[%clk 0:00:12.8]}
54... Bf5 {[%clk 0:00:05.1]} 55. Rf2 {[%clk 0:00:12.9]} 55... Bg6 {[%clk
0:00:04.2]} 56. Rf6 {[%clk 0:00:13.6]} 56... Bf5 {[%clk 0:00:04.9]} 57. Kf3
{[%clk 0:00:12.9]} 57... Be6 {[%clk 0:00:04.3]} 58. Kg3 {[%clk 0:00:12.8]} 58...
Kd6 {[%clk 0:00:04.7]} 59. g6 {[%clk 0:00:11.8]} 59... Ke7 {[%clk 0:00:05.1]}
60. Rf4 {[%clk 0:00:11.5]} 60... Ba2 {[%clk 0:00:03.8]} 61. Kh4 {[%clk
0:00:11.8]} 61... Bb1 {[%clk 0:00:04.2]} 62. Kg5 {[%clk 0:00:12.5]} 62... Ke6
{[%clk 0:00:04.2]} 63. g7 {[%clk 0:00:12.4]} 63... Bh7 {[%clk 0:00:04.8]} 64.
Kh6 {[%clk 0:00:12.9]} 64... Bg8 {[%clk 0:00:04.2]} 65. Rf8 {[%clk 0:00:13.6]}
1-0

[Event "Early-Titled-Tuesday-Blitz-October-03-2023"]
[Site "Chess.com"]
[Date "2023.10.03"]
[Round "5"]
[White "Fantastic_Power"]
[Black "Fandorine"]
[Result "1/2-1/2"]
[WhiteElo "2782"]
[BlackElo "2930"]
[TimeControl "180+1"]
[EndTime "8:57:06 PDT"]
[Termination "Game drawn by repetition"]

1. e4 {[%clk 0:03:00.9]} 1... e6 {[%clk 0:02:56.8]} 2. d4 {[%clk 0:03:01.4]}
2... d5 {[%clk 0:02:56.9]} 3. Nc3 {[%clk 0:03:02.2]} 3... Nf6 {[%clk 0:02:55.9]}
4. Bg5 {[%clk 0:03:01.9]} 4... Be7 {[%clk 0:02:50]} 5. e5 {[%clk 0:03:02.1]}
5... Nfd7 {[%clk 0:02:50.2]} 6. Bxe7 {[%clk 0:03:03]} 6... Qxe7 {[%clk
0:02:51.1]} 7. f4 {[%clk 0:03:02.7]} 7... a6 {[%clk 0:02:51]} 8. Nf3 {[%clk
0:03:03.4]} 8... c5 {[%clk 0:02:50.9]} 9. dxc5 {[%clk 0:03:04.3]} 9... Nc6
{[%clk 0:02:50.9]} 10. Bd3 {[%clk 0:03:04.6]} 10... Nxc5 {[%clk 0:02:47.2]} 11.
O-O {[%clk 0:03:04.9]} 11... b5 {[%clk 0:02:47.2]} 12. Ne2 {[%clk 0:03:05.2]}
12... Qa7 {[%clk 0:02:34]} 13. Kh1 {[%clk 0:03:04.5]} 13... Bd7 {[%clk
0:02:33.3]} 14. Ned4 {[%clk 0:03:02.6]} 14... Nxd4 {[%clk 0:02:32.4]} 15. Nxd4
{[%clk 0:03:03.5]} 15... b4 {[%clk 0:02:33.1]} 16. f5 {[%clk 0:02:59.4]} 16...
Nxd3 {[%clk 0:02:25.8]} 17. Qxd3 {[%clk 0:03:00.3]} 17... exf5 {[%clk
0:02:25.5]} 18. Nxf5 {[%clk 0:02:59.7]} 18... Bxf5 {[%clk 0:02:25.6]} 19. Qxf5
{[%clk 0:02:42.8]} 19... Qe7 {[%clk 0:02:07.4]} 20. e6 {[%clk 0:01:41.8]} 20...
fxe6 {[%clk 0:01:58.9]} 21. Qe5 {[%clk 0:01:41.6]} 21... Rf8 {[%clk 0:01:48.9]}
22. Qh5+ {[%clk 0:01:32.1]} 22... g6 {[%clk 0:01:47.5]} 23. Qe5 {[%clk
0:01:32.7]} 23... Kd7 {[%clk 0:01:38.4]} 24. a3 {[%clk 0:01:21.7]} 24... Rxf1+
{[%clk 0:01:24.5]} 25. Rxf1 {[%clk 0:01:21.1]} 25... Rf8 {[%clk 0:01:25.2]} 26.
Re1 {[%clk 0:01:09.4]} 26... bxa3 {[%clk 0:00:46]} 27. bxa3 {[%clk 0:01:10.3]}
27... Qf6 {[%clk 0:00:46.3]} 28. Qe2 {[%clk 0:01:08.6]} 28... e5 {[%clk
0:00:47]} 29. h3 {[%clk 0:01:04]} 29... e4 {[%clk 0:00:41.1]} 30. c4 {[%clk
0:00:57.8]} 30... Qf2 {[%clk 0:00:41.1]} 31. Qd1 {[%clk 0:00:53]} 31... Rf5
{[%clk 0:00:12.9]} 32. cxd5 {[%clk 0:00:52.4]} 32... Qc5 {[%clk 0:00:06.7]} 33.
Qa4+ {[%clk 0:00:48.9]} 33... Kc7 {[%clk 0:00:04.4]} 34. Qxe4 {[%clk 0:00:49.8]}
34... Rxd5 {[%clk 0:00:04]} 35. Qf4+ {[%clk 0:00:49.3]} 35... Qd6 {[%clk
0:00:03.1]} 36. Qf7+ {[%clk 0:00:37.6]} 36... Kb6 {[%clk 0:00:03.4]} 37. Qxh7
{[%clk 0:00:27.8]} 37... Rd1 {[%clk 0:00:02.6]} 38. Qh4 {[%clk 0:00:24.5]} 38...
Rxe1+ {[%clk 0:00:02.9]} 39. Qxe1 {[%clk 0:00:25]} 39... Qxa3 {[%clk 0:00:03.7]}
40. Qb1+ {[%clk 0:00:25.2]} 40... Kc5 {[%clk 0:00:03.1]} 41. Qxg6 {[%clk
0:00:24.3]} 41... Qc1+ {[%clk 0:00:03.4]} 42. Kh2 {[%clk 0:00:24.3]} 42... Qf4+
{[%clk 0:00:04.1]} 43. Kg1 {[%clk 0:00:17.4]} 43... a5 {[%clk 0:00:04.5]} 44.
Qe8 {[%clk 0:00:02.1]} 44... Kb4 {[%clk 0:00:03.6]} 45. Qe7+ {[%clk 0:00:01.4]}
45... Kb3 {[%clk 0:00:03.3]} 46. h4 {[%clk 0:00:02.1]} 46... Qd4+ {[%clk
0:00:03.3]} 47. Kh2 {[%clk 0:00:02.1]} 47... a4 {[%clk 0:00:04.1]} 48. h5 {[%clk
0:00:02.2]} 48... a3 {[%clk 0:00:04.9]} 49. h6 {[%clk 0:00:02.4]} 49... Qf4+
{[%clk 0:00:05.4]} 50. Kg1 {[%clk 0:00:01.7]} 50... Qc1+ {[%clk 0:00:06.1]} 51.
Kf2 {[%clk 0:00:01.4]} 51... Qxh6 {[%clk 0:00:06.4]} 52. Qb7+ {[%clk 0:00:01.7]}
52... Ka2 {[%clk 0:00:05.7]} 53. Qd5+ {[%clk 0:00:02]} 53... Kb2 {[%clk
0:00:06.1]} 54. Qb5+ {[%clk 0:00:02.3]} 54... Ka1 {[%clk 0:00:05.5]} 55. Qe5+
{[%clk 0:00:02.1]} 55... Ka2 {[%clk 0:00:05]} 56. Qd5+ {[%clk 0:00:02.4]} 56...
Kb2 {[%clk 0:00:04.9]} 57. Qd4+ {[%clk 0:00:02.9]} 57... Kb3 {[%clk 0:00:04.4]}
58. Qd3+ {[%clk 0:00:03.4]} 58... Kb4 {[%clk 0:00:03.9]} 59. Qd4+ {[%clk
0:00:04]} 59... Kb5 {[%clk 0:00:03.6]} 60. Qd5+ {[%clk 0:00:04]} 60... Ka4
{[%clk 0:00:02.6]} 61. Qc4+ {[%clk 0:00:04]} 61... Ka5 {[%clk 0:00:03.1]} 62.
Qc5+ {[%clk 0:00:04.5]} 62... Ka4 {[%clk 0:00:03.6]} 63. Qc4+ {[%clk 0:00:05.1]}
63... Ka5 {[%clk 0:00:04.1]} 64. Qc5+ {[%clk 0:00:05.6]} 64... Ka4 {[%clk
0:00:04.7]} 65. Qc4+ {[%clk 0:00:06.2]} 1/2-1/2